bitfinex/quotes_BTCUSD_20250206
["timestamp","ask_amount","ask_price","bid_price","bid_amount"]
[1738817050575,0.00022428,97601.0,97600.0,20.0789152]
[1738817053580,0.00022428,97601.0,97600.0,20.0689152]
[1738817053844,0.00022428,97601.0,97600.0,19.9187152]
[1738817054178,0.00022428,97601.0,97600.0,19.87700946]
[1738817054402,0.00022428,97601.0,97600.0,19.57332146]
[1738817054611,0.00022428,97601.0,97600.0,19.58332146]
[1738817054828,0.00022428,97601.0,97600.0,19.16051781]
[1738817055032,0.08012428,97601.0,97600.0,19.15051781]
[1738817055239,0.08012428,97601.0,97600.0,19.16051781]
[1738817056429,0.08012428,97601.0,97600.0,19.15051781]
[1738817056757,0.08012428,97601.0,97600.0,19.16051781]
[1738817056962,0.08012428,97601.0,97600.0,19.15051781]
[1738817059718,0.28051028,97601.0,97600.0,19.15051781]
[1738817059937,0.28051028,97601.0,97600.0,19.01]
[1738817060048,0.28051028,97601.0,97600.0,19.0]
[1738817060893,0.28051028,97601.0,97600.0,19.01]
[1738817062463,0.28051028,97601.0,97600.0,19.02]
[1738817065923,0.12682428,97601.0,97600.0,19.02]
[1738817072444,0.28051028,97601.0,97600.0,19.02]
[1738817073707,0.20061028,97601.0,97600.0,19.02]
[1738817076203,0.20061028,97601.0,97600.0,18.99128876]
[1738817076611,0.20061028,97601.0,97600.0,19.13236826]
[1738817077222,0.00022428,97601.0,97600.0,19.13236826]
[1738817080826,0.00022428,97601.0,97600.0,19.15536826]
[1738817091463,0.00022428,97601.0,97600.0,19.14536826]
[1738817091464,0.07822428,97601.0,97600.0,19.14536826]
[1738817092245,0.00022428,97601.0,97600.0,19.15536826]
[1738817094586,0.00022428,97601.0,97600.0,19.15559254]
[1738817101379,0.00022428,97601.0,97600.0,19.12259254]
[1738817101380,0.15391028,97601.0,97600.0,19.12259254]
[1738817101742,0.15391028,97601.0,97600.0,19.13259254]
[1738817105293,0.00022428,97601.0,97600.0,19.13259254]
[1738817106335,0.00022428,97601.0,97600.0,19.15559254]
[1738817107280,0.00022428,97601.0,97600.0,19.17472136]
[1738817118575,0.15391028,97601.0,97600.0,19.17472136]
[1738817118807,0.23201028,97601.0,97600.0,19.15172136]
[1738817119361,0.23201028,97601.0,97600.0,19.13259254]
[1738817119571,0.15391028,97601.0,97600.0,19.13259254]
[1738817122295,0.00022428,97601.0,97600.0,19.15559254]
[1738817123783,0.15391028,97601.0,97600.0,19.15559254]
[1738817129281,0.15391028,97601.0,97600.0,19.12259254]
[1738817129482,0.15391028,97601.0,97600.0,18.98151304]
[1738817129990,0.15391028,97601.0,97600.0,18.97151304]
[1738817130350,0.15391028,97601.0,97600.0,18.98151304]
[1738817131234,0.15391028,97601.0,97600.0,18.97151304]
[1738817131451,0.15391028,97601.0,97600.0,18.98151304]
[1738817132982,0.15391028,97601.0,97600.0,18.97151304]
[1738817133317,0.15391028,97601.0,97600.0,18.98151304]
[1738817134878,0.15391028,97601.0,97600.0,18.97151304]
[1738817137086,0.20061028,97601.0,97600.0,18.97151304]
[1738817137349,0.27821028,97601.0,97600.0,18.97151304]
[1738817138604,0.45159344,97601.0,97600.0,18.97151304]
[1738817138841,0.92669344,97601.0,97600.0,18.97151304]
[1738817139084,0.85581393,97601.0,97600.0,18.97151304]
[1738817139803,0.75331028,97601.0,97600.0,18.97151304]
[1738817140287,0.60331028,97601.0,97600.0,18.97151304]
[1738817140521,0.52571028,97601.0,97600.0,18.97151304]
[1738817142644,0.20061028,97601.0,97600.0,18.97151304]
[1738817149928,0.15391028,97601.0,97600.0,18.97151304]
[1738817152383,0.33561393,97601.0,97600.0,18.97151304]
[1738817152586,0.53281393,97601.0,97600.0,18.97151304]
[1738817152785,0.6094338,97601.0,97600.0,18.97151304]
[1738817153223,0.53281393,97601.0,97600.0,18.97151304]
[1738817154595,0.85791393,97601.0,97600.0,18.97151304]
[1738817162581,1.37020393,97601.0,97600.0,18.97151304]
[1738817183321,1.37120393,97601.0,97600.0,18.97151304]
[1738817183853,1.37020393,97601.0,97600.0,18.97151304]
[1738817184145,1.37120393,97601.0,97600.0,18.97151304]
[1738817185566,1.37112527,97601.0,97600.0,18.97151304]
[1738817188128,1.29192527,97601.0,97600.0,18.97151304]
[1738817188539,1.24472527,97601.0,97600.0,18.97151304]
[1738817188774,0.99222162,97601.0,97600.0,19.04971304]
[1738817189544,1.14222162,97601.0,97600.0,19.04971304]
[1738817189736,1.14222162,97601.0,97600.0,18.97151304]
[1738817190061,1.14122162,97601.0,97600.0,18.97151304]
[1738817191325,1.24372527,97601.0,97600.0,18.97151304]
[1738817200605,1.37252527,97601.0,97600.0,18.97151304]
[1738817208131,1.37252527,97601.0,97600.0,18.9140697]
[1738817208288,1.37252527,97601.0,97600.0,18.8321017]
[1738817208466,1.37252527,97601.0,97600.0,18.7911177]
[1738817209345,1.37252527,97601.0,97600.0,18.7706257]
[1738817209519,1.37452527,97601.0,97600.0,18.7501337]
[1738817210421,1.29372527,97601.0,97600.0,18.7501337]
[1738817211300,1.29172527,97601.0,97600.0,18.7501337]
[1738817211505,1.29272527,97601.0,97600.0,18.7501337]
[1738817213869,1.29272527,97601.0,97600.0,18.7296417]
[1738817214077,1.51175261,97601.0,97600.0,18.5874037]
[1738817214428,1.51175261,97601.0,97600.0,18.5259277]
[1738817214776,1.51175261,97601.0,97600.0,18.4849437]
[1738817215070,1.51075261,97601.0,97600.0,18.4849437]
[1738817215206,1.51275261,97601.0,97600.0,18.4849437]
[1738817215414,1.51275261,97601.0,97600.0,18.4439597]
[1738817215616,1.51275261,97601.0,97600.0,18.4234677]
[1738817215859,1.51275261,97601.0,97600.0,18.4029757]
[1738817216078,1.51275261,97601.0,97600.0,18.3824837]
[1738817216509,1.51275261,97601.0,97600.0,18.3414997]
[1738817216710,1.51275261,97601.0,97600.0,18.24154195]
[1738817217108,1.51275261,97601.0,97600.0,18.12935195]
[1738817217109,1.61275261,97601.0,97600.0,18.12935195]
[1738817217392,1.61275261,97601.0,97600.0,17.31446202]
[1738817217633,1.67183915,97601.0,97600.0,16.63010391]
[1738817217868,1.69986845,97601.0,97600.0,16.49789897]
[1738817218094,1.8023721,97601.0,97600.0,16.05471305]
[1738817218337,1.8043721,97601.0,97600.0,15.72741469]
[1738817218583,1.8043721,97601.0,97600.0,15.21433439]
[1738817218584,1.83040405,97601.0,97600.0,15.21433439]
[1738817219067,1.83940405,97601.0,97600.0,15.1991344]
[1738817219296,1.80037475,97601.0,97600.0,14.8052884]
[1738817219536,1.67612606,97601.0,97600.0,14.7265244]
[1738817219774,1.62164677,97601.0,97600.0,14.7265244]
[1738817220435,1.65577411,97601.0,97600.0,14.6650484]
[1738817220687,1.65577411,97601.0,97600.0,14.6445564]
[1738817220921,1.64677411,97601.0,97600.0,14.6230644]
[1738817221142,1.65577411,97601.0,97600.0,14.6240644]
[1738817221433,1.65577411,97601.0,97600.0,14.5615884]
[1738817221647,1.66477411,97601.0,97600.0,14.5216044]
[1738817222115,1.76727776,97601.0,97600.0,14.5216044]
[1738817222342,1.76727776,97601.0,97600.0,14.4806204]
[1738817222585,1.74927776,97601.0,97600.0,14.4181444]
[1738817222806,1.75827776,97601.0,97600.0,14.4191444]
[1738817223252,1.75827776,97601.0,97600.0,14.3398744]
[1738817223458,1.75827776,97601.0,97600.0,14.1028564]
[1738817224740,1.75827776,97601.0,97600.0,14.0413804]
[1738817225240,1.75827776,97601.0,97600.0,14.0003964]
[1738817225419,1.75827776,97601.0,97600.0,13.97516353]
[1738817226214,1.65577411,97601.0,97600.0,13.95467153]
[1738817226414,1.65577411,97601.0,97600.0,13.93417953]
[1738817226868,1.65577411,97601.0,97600.0,13.86293553]
[1738817227867,1.68651915,97601.0,97600.0,13.24899968]
[1738817228042,1.68651915,97601.0,97600.0,13.19665595]
[1738817228261,1.68651915,97601.0,97600.0,13.09353392]
[1738817228262,1.7890228,97601.0,97600.0,13.09353392]
[1738817228451,1.81896145,97601.0,97600.0,13.00157663]
[1738817228651,1.81896145,97601.0,97600.0,12.9209619]
[1738817229070,1.80996145,97601.0,97600.0,12.7891519]
[1738817229371,1.80996145,97601.0,97600.0,12.74316789]
[1738817229563,1.80996145,97601.0,97600.0,12.70218389]
[1738817229701,1.80996145,97601.0,97600.0,12.68169189]
[1738817229910,1.80996145,97601.0,97600.0,12.66969189]
[1738817230311,1.80996145,97601.0,97600.0,12.64919989]
[1738817230533,1.68571276,97601.0,97600.0,12.56823189]
[1738817230993,1.65577411,97601.0,97600.0,12.56823189]
[1738817232216,1.65577411,97601.0,97600.0,12.54773989]
[1738817232397,1.65577411,97601.0,97600.0,12.52724789]
[1738817233616,1.64677411,97601.0,97600.0,12.50575589]
[1738817233827,1.74159776,97601.0,97600.0,12.44427989]
[1738817234046,1.75827776,97601.0,97600.0,12.42478789]
[1738817234246,1.75059776,97601.0,97600.0,12.42478789]
[1738817234451,1.62164677,97601.0,97600.0,12.32232789]
[1738817234788,1.54296677,97601.0,97600.0,12.32232789]
[1738817234992,1.36574677,97601.0,97600.0,12.32232789]
[1738817235374,1.36574677,97601.0,97600.0,12.28134389]
[1738817235574,1.36574677,97601.0,97600.0,12.26085189]
[1738817235737,1.35674677,97601.0,97600.0,12.25985189]
[1738817236992,1.34906677,97601.0,97600.0,12.25985189]
[1738817237194,1.36574677,97601.0,97600.0,12.26085189]
[1738817237604,1.35674677,97601.0,97600.0,12.25985189]
[1738817237801,1.36574677,97601.0,97600.0,12.26085189]
[1738817238116,1.35674677,97601.0,97600.0,12.25985189]
[1738817238476,1.36574677,97601.0,97600.0,12.26085189]
[1738817238682,1.38800784,97601.0,97600.0,12.26085189]
[1738817239325,1.36574677,97601.0,97600.0,12.26085189]
[1738817239534,1.35272527,97601.0,97600.0,12.26085189]
[1738817239703,1.36040527,97601.0,97600.0,12.26085189]
[1738817240698,1.35140527,97601.0,97600.0,12.25985189]
[1738817241097,1.36040527,97601.0,97600.0,12.26085189]
[1738817242167,1.35272527,97601.0,97600.0,12.26085189]
[1738817242374,1.37110339,97601.0,97600.0,12.26085189]
[1738817244847,1.36040527,97601.0,97600.0,12.26085189]
[1738817244972,1.36040527,97601.0,97600.0,12.17888389]
[1738817245171,1.44300527,97601.0,97600.0,12.15839189]
[1738817245369,1.44300527,97601.0,97600.0,12.09691589]
[1738817245632,1.44300527,97601.0,97600.0,12.07642389]
[1738817246570,1.54550892,97601.0,97600.0,11.97396389]
[1738817246857,1.71043626,97601.0,97600.0,11.75665889]
[1738817246990,1.82241805,97601.0,97600.0,11.71068389]
[1738817248564,1.82241805,97601.0,97600.0,11.66969989]
[1738817248773,1.82241805,97601.0,97600.0,11.64920789]
[1738817249456,1.82241805,97601.0,97600.0,11.62871589]
[1738817249668,1.68916936,97601.0,97600.0,11.56723989]
[1738817250005,1.68916936,97601.0,97600.0,11.54674789]
[1738817250428,1.68916936,97601.0,97600.0,11.52625589]
[1738817250633,1.68916936,97601.0,97600.0,11.46477989]
[1738817251940,1.68916936,97601.0,97600.0,11.44428789]
[1738817252139,1.68916936,97601.0,97600.0,11.42379589]
[1738817252788,1.79167301,97601.0,97600.0,11.38281189]
[1738817253163,1.68916936,97601.0,97600.0,11.36231989]
[1738817253364,1.68916936,97601.0,97600.0,11.34182789]
[1738817253769,1.68148936,97601.0,97600.0,11.32133589]
[1738817253970,1.68916936,97601.0,97600.0,11.30084389]
[1738817254223,1.68916936,97601.0,97600.0,11.28035189]
[1738817257169,1.68916936,97601.0,97600.0,11.25985989]
[1738817257328,1.68916936,97601.0,97600.0,11.23936789]
[1738817257865,1.68916936,97601.0,97600.0,11.19838389]
[1738817258406,1.68916936,97601.0,97600.0,11.15739989]
[1738817258706,1.68916936,97601.0,97600.0,11.13690789]
[1738817258832,1.68916936,97601.0,97600.0,11.11641589]
[1738817260667,1.68916936,97601.0,97600.0,11.09592389]
[1738817260806,1.68916936,97601.0,97600.0,11.07543189]
[1738817261243,1.68916936,97601.0,97600.0,11.03444789]
[1738817261445,1.68916936,97601.0,97600.0,11.01395589]
[1738817261709,1.79167301,97601.0,97600.0,10.89620789]
[1738817261865,1.79167301,97601.0,97600.0,10.87571589]
[1738817262246,1.79167301,97601.0,97600.0,10.85522389]
[1738817262441,1.79167301,97601.0,97600.0,10.70020589]
[1738817263548,1.79167301,97601.0,97600.0,10.64336389]
[1738817263748,1.79167301,97601.0,97600.0,10.62287189]
[1738817263972,1.79167301,97601.0,97600.0,10.32649838]
[1738817264171,1.82241805,97601.0,97600.0,10.30600638]
[1738817264371,1.82241805,97601.0,97600.0,10.22403838]
[1738817264591,1.82241805,97601.0,97600.0,10.20354638]
[1738817265327,1.81341805,97601.0,97600.0,10.18205438]
[1738817265741,1.82241805,97601.0,97600.0,10.10108638]
[1738817266937,1.82241805,97601.0,97600.0,9.94704638]
[1738817268605,1.79167301,97601.0,97600.0,9.88557038]
[1738817268755,1.79167301,97601.0,97600.0,9.84458638]
[1738817269335,1.79167301,97601.0,97600.0,9.82409438]
[1738817269513,1.79167301,97601.0,97600.0,9.76757673]
[1738817269670,1.79167301,97601.0,97600.0,9.72659273]
[1738817270015,1.79167301,97601.0,97600.0,9.70610073]
[1738817270336,1.79167301,97601.0,97600.0,9.68560873]
[1738817270939,1.79167301,97601.0,97600.0,9.66511673]
[1738817271096,1.79167301,97601.0,97600.0,9.60364073]
[1738817271293,1.79167301,97601.0,97600.0,9.54360808]
[1738817271876,1.79167301,97601.0,97600.0,9.50011608]
[1738817272103,1.79167301,97601.0,97600.0,9.47962408]
[1738817273249,1.79167301,97601.0,97600.0,9.45413208]
[1738817273397,1.68416936,97601.0,97600.0,9.39265608]
[1738817274641,1.68416936,97601.0,97600.0,9.31502208]
[1738817276538,1.68416936,97601.0,97600.0,9.29453008]
[1738817276797,1.68416936,97601.0,97600.0,9.19730408]
[1738817277048,1.78667301,97601.0,97600.0,9.17681208]
[1738817277342,1.78667301,97601.0,97600.0,9.15632008]
[1738817277856,1.78667301,97601.0,97600.0,9.11533608]
[1738817278081,1.78667301,97601.0,97600.0,9.09484408]
[1738817278634,1.78667301,97601.0,97600.0,9.07435208]
[1738817278985,1.78667301,97601.0,97600.0,9.05386008]
[1738817280033,1.78689729,97601.0,97600.0,9.03336808]
[1738817280276,1.78689729,97601.0,97600.0,9.01287608]
[1738817280491,1.68439364,97601.0,97600.0,8.99238408]
[1738817280694,1.68439364,97601.0,97600.0,8.97189208]
[1738817282520,1.68439364,97601.0,97600.0,8.93090808]
[1738817283115,1.68439364,97601.0,97600.0,8.88992408]
[1738817283317,1.68439364,97601.0,97600.0,8.84894008]
[1738817283540,1.68439364,97601.0,97600.0,8.80795608]
[1738817284997,1.63849364,97601.0,97600.0,8.80795608]
[1738817285219,1.63849364,97601.0,97600.0,8.72598808]
[1738817288529,1.5140863,97601.0,97600.0,8.70549608]
[1738817288716,1.4987663,97601.0,97600.0,8.70549608]
[1738817290163,1.5140863,97601.0,97600.0,8.70549608]
[1738817290477,1.5217663,97601.0,97600.0,8.70549608]
[1738817292086,1.5140863,97601.0,97600.0,8.70549608]
[1738817292378,1.5217663,97601.0,97600.0,8.70549608]
[1738817294685,1.2332863,97601.0,97600.0,8.70549608]
[1738817294818,1.2409663,97601.0,97600.0,8.70549608]
[1738817295984,1.3819663,97601.0,97600.0,8.70449608]
[1738817296403,1.3909663,97601.0,97600.0,8.70449608]
[1738817297698,1.38541985,97601.0,97600.0,8.70449608]
[1738817300650,1.38541985,97601.0,97600.0,8.75219608]
[1738817303317,1.37773985,97601.0,97600.0,8.75219608]
[1738817303518,1.38541985,97601.0,97600.0,8.75219608]
[1738817303918,1.37773985,97601.0,97600.0,8.75219608]
[1738817304077,1.38541985,97601.0,97600.0,8.75219608]
[1738817309181,1.38541985,97601.0,97600.0,8.70449608]
[1738817317911,1.47739491,97601.0,97600.0,8.70449608]
[1738817318860,1.36971491,97601.0,97600.0,8.70449608]
[1738817319061,1.37739491,97601.0,97600.0,8.78139608]
[1738817319321,1.37205308,97601.0,97600.0,8.78139608]
[1738817319738,1.34205816,97601.0,97600.0,8.78139608]
[1738817320196,1.36439931,97601.0,97600.0,8.78139608]
[1738817320603,1.32537816,97601.0,97600.0,8.78139608]
[1738817321055,1.33237816,97601.0,97600.0,8.78139608]
[1738817321829,1.2404031,97601.0,97600.0,8.78139608]
[1738817323683,1.2404031,97601.0,97600.0,8.70449608]
[1738817345565,1.27044159,97601.0,97600.0,8.70449608]
[1738817355599,1.35314159,97601.0,97600.0,8.70449608]
[1738817362711,1.27812159,97601.0,97600.0,8.70449608]
[1738817380398,1.27044159,97601.0,97600.0,8.70449608]
[1738817380603,1.27812159,97601.0,97600.0,8.70449608]
[1738817382118,1.2480831,97601.0,97600.0,8.70449608]
[1738817385271,1.2404031,97601.0,97600.0,8.70449608]
[1738817389671,1.27044651,97601.0,97600.0,8.70449608]
[1738817391290,1.2404031,97601.0,97600.0,8.70449608]
[1738817393861,1.2334031,97601.0,97600.0,8.70449608]
[1738817394040,1.2334031,97601.0,97600.0,8.70549608]
[1738817394429,1.2334031,97601.0,97600.0,8.70449608]
[1738817394628,1.2334031,97601.0,97600.0,8.70549608]
[1738817395065,1.2334031,97601.0,97600.0,8.70449608]
[1738817395477,1.2354031,97601.0,97600.0,8.70449608]
[1738817397327,1.2364031,97601.0,97600.0,8.70449608]
[1738817400688,1.2334031,97601.0,97600.0,8.70449608]
[1738817400843,1.2354031,97601.0,97600.0,8.70449608]
[1738817407302,1.28844028,97601.0,97600.0,8.70449608]
[1738817412256,1.29612028,97601.0,97600.0,8.70449608]
[1738817415530,1.27312028,97601.0,97600.0,8.70449608]
[1738817417784,1.29612028,97601.0,97600.0,8.70449608]
[1738817417989,1.37932028,97601.0,97600.0,8.70449608]
[1738817423289,1.29612028,97601.0,97600.0,8.70449608]
[1738817431342,1.27312028,97601.0,97600.0,8.70449608]
[1738817434197,1.26544028,97601.0,97600.0,8.70449608]
[1738817434399,1.27312028,97601.0,97600.0,8.70449608]
[1738817444138,1.26544028,97601.0,97600.0,8.70449608]
[1738817444658,1.12312028,97601.0,97600.0,8.70449608]
[1738817445127,1.0930831,97601.0,97600.0,8.75329608]
[1738817445536,1.2430831,97601.0,97600.0,8.75329608]
[1738817445739,1.2354031,97601.0,97600.0,8.75329608]
[1738817446501,0.51451428,97601.0,97600.0,8.83289608]
[1738817447113,0.51451428,97601.0,97600.0,8.84289608]
[1738817448286,0.51451428,97601.0,97600.0,8.85289608]
[1738817448731,0.51251428,97601.0,97600.0,8.85289608]
[1738817449143,0.51251428,97601.0,97600.0,8.85489608]
[1738817468829,0.51251428,97601.0,97600.0,9.15472882]
[1738817469771,0.51251428,97601.0,97600.0,9.16475121]
[1738817470398,0.51251428,97601.0,97600.0,9.16275121]
[1738817470778,0.51251428,97601.0,97600.0,9.16475121]
[1738817473792,0.51251428,97601.0,97600.0,9.18507564]
[1738817479144,0.51251428,97601.0,97600.0,9.31057929]
[1738817485794,0.51251428,97601.0,97600.0,9.30857929]
[1738817486048,0.51251428,97601.0,97600.0,9.31057929]
[1738817490755,0.45103828,97601.0,97600.0,9.31057929]
[1738817490878,0.43054628,97601.0,97600.0,9.31057929]
[1738817491282,0.30542976,97601.0,97600.0,9.46057929]
[1738817491680,0.2507789,97601.0,97600.0,9.46057929]
[1738817491905,0.11614825,97601.0,97600.0,9.46057929]
[1738817492346,0.11271825,97601.0,97600.0,9.46057929]
[1738817492682,0.07089705,97601.0,97600.0,9.46057929]
[1738817492876,0.00942405,97601.0,97600.0,9.47857929]
[1738817493076,0.08291659,97628.0,97627.0,0.173646]
[1738817493289,0.08291659,97628.0,97627.0,0.31315924]
[1738817493446,0.0769,97651.0,97637.0,0.16363]
[1738817493846,0.0769,97651.0,97638.0,0.01]
[1738817494059,0.0769,97651.0,97638.0,0.01102396]
[1738817494364,0.00027089,97639.0,97638.0,0.01102396]
[1738817496073,0.00027089,97639.0,97638.0,0.01202396]
[1738817499020,0.00027089,97639.0,97638.0,0.02202396]
[1738817499222,0.00027089,97639.0,97638.0,0.16565051]
[1738817500385,0.00027089,97639.0,97638.0,0.16465051]
[1738817500593,0.00027089,97639.0,97638.0,0.16565051]
[1738817504159,0.00027089,97639.0,97638.0,0.31927851]
[1738817504366,0.00027089,97639.0,97638.0,0.31825455]
[1738817516777,0.08027089,97639.0,97638.0,0.001]
[1738817518347,0.12637089,97639.0,97638.0,0.001]
[1738817518541,0.153631,97636.0,97634.0,0.01]
[1738817518747,0.0794,97635.0,97634.0,0.01]
[1738817518949,0.153635,97634.0,97633.0,0.01]
[1738817521090,0.16129956,97634.0,97633.0,0.01]
[1738817521352,0.00766456,97634.0,97633.0,0.01]
[1738817522522,0.00766456,97634.0,97633.0,0.011]
[1738817522718,0.0794,97635.0,97633.0,0.011]
[1738817522947,0.0794,97635.0,97634.0,0.01]
[1738817524088,0.0794,97635.0,97634.0,0.011]
[1738817524612,0.0795068,97635.0,97634.0,0.011]
[1738817525776,0.0795068,97635.0,97634.0,0.01]
[1738817526227,0.0795068,97635.0,97634.0,0.011]
[1738817526901,0.48564345,97635.0,97634.0,0.001]
[1738817527111,0.53434345,97635.0,97634.0,0.001]
[1738817528290,1.04645345,97635.0,97634.0,0.001]
[1738817528874,0.153644,97629.0,97624.0,0.01]
[1738817529045,0.10250365,97628.0,97624.0,0.01]
[1738817529272,0.61461365,97628.0,97624.0,0.01]
[1738817529769,0.0808,97625.0,97624.0,0.01]
[1738817529952,0.59291,97625.0,97624.0,0.01]
[1738817530555,0.59291,97625.0,97624.0,0.011]
[1738817530763,0.746559,97625.0,97624.0,0.011]
[1738817531471,0.59291,97625.0,97624.0,0.011]
[1738817531876,0.84906265,97625.0,97624.0,0.001]
[1738817532376,0.89436265,97625.0,97624.0,0.001]
[1738817533738,0.153657,97620.0,97611.0,0.00022428]
[1738817533939,0.10250365,97619.0,97611.0,0.00022428]
[1738817534186,0.61461365,97619.0,97611.0,0.00022428]
[1738817534348,0.61461365,97619.0,97618.0,0.01]
[1738817536846,0.61461365,97619.0,97618.0,0.001]
[1738817540723,0.61461365,97619.0,97618.0,0.011]
[1738817541299,0.51211,97619.0,97618.0,0.16466]
[1738817541509,0.51211,97619.0,97618.0,0.17568427]
[1738817541759,0.51211,97619.0,97618.0,0.25168427]
[1738817541972,0.51211,97619.0,97618.0,0.25066]
[1738817543191,0.51211,97619.0,97618.0,0.26103186]
[1738817543864,0.51211,97619.0,97618.0,0.36353551]
[1738817544063,0.51211,97619.0,97618.0,0.57298553]
[1738817544692,0.51211,97619.0,97618.0,0.59364794]
[1738817545047,0.51211,97619.0,97618.0,0.59264794]
[1738817546352,0.51211,97619.0,97618.0,0.59364794]
[1738817549342,0.5122168,97619.0,97618.0,0.59364794]
[1738817550420,0.5122168,97619.0,97618.0,0.58364794]
[1738817550631,0.5122168,97619.0,97618.0,0.59364794]
[1738817550851,0.5122168,97619.0,97618.0,0.58364794]
[1738817551011,0.5122168,97619.0,97618.0,0.59364794]
[1738817552032,0.5122168,97619.0,97618.0,0.49464794]
[1738817552235,0.5122168,97619.0,97618.0,0.49364794]
[1738817553253,0.5122168,97619.0,97618.0,0.49464794]
[1738817554932,0.5122168,97619.0,97618.0,0.49364794]
[1738817555389,0.5122168,97619.0,97618.0,0.49464794]
[1738817555783,0.5122168,97619.0,97618.0,0.43914794]
[1738817555957,0.5122168,97619.0,97618.0,0.42848553]
[1738817558004,0.5122168,97619.0,97618.0,0.32598188]
[1738817559200,0.5122168,97619.0,97618.0,0.32498188]
[1738817559546,0.5122168,97619.0,97618.0,0.32598188]
[1738817559745,0.5122168,97619.0,97618.0,0.32498188]
[1738817559954,0.5122168,97619.0,97618.0,0.32598188]
[1738817562191,0.5122168,97619.0,97618.0,0.31598188]
[1738817562517,0.5122168,97619.0,97618.0,0.32598188]
[1738817564359,0.5122168,97619.0,97618.0,0.32498188]
[1738817564772,0.5122168,97619.0,97618.0,0.32598188]
[1738817568089,0.5122168,97619.0,97618.0,0.32498188]
[1738817568264,0.5122168,97619.0,97618.0,0.32598188]
[1738817570939,0.5122168,97619.0,97618.0,0.32498188]
[1738817571179,0.5122168,97619.0,97618.0,0.32598188]
[1738817571899,0.5122168,97619.0,97618.0,0.32498188]
[1738817572329,0.5122168,97619.0,97618.0,0.32598188]
[1738817572530,0.5122168,97619.0,97618.0,0.31498188]
[1738817572705,0.5122168,97619.0,97618.0,0.32498188]
[1738817573038,0.5122168,97619.0,97618.0,0.32598188]
[1738817577379,0.5122168,97619.0,97618.0,0.32498188]
[1738817577703,0.5122168,97619.0,97618.0,0.32598188]
[1738817580245,0.5122168,97619.0,97618.0,0.32498188]
[1738817580638,0.5122168,97619.0,97618.0,0.32598188]
[1738817584547,0.5122168,97619.0,97618.0,0.32498188]
[1738817584745,0.5122168,97619.0,97618.0,0.32598188]
[1738817585359,0.5122168,97619.0,97618.0,0.45148553]
[1738817585521,0.5122168,97619.0,97618.0,0.45048553]
[1738817587130,0.5122168,97619.0,97618.0,0.45148553]
[1738817587333,0.5122168,97619.0,97618.0,0.45048553]
[1738817587572,0.5122168,97619.0,97618.0,0.45148553]
[1738817588740,0.5122168,97619.0,97618.0,0.45048553]
[1738817590094,0.5122168,97619.0,97618.0,0.45148553]
[1738817590457,0.5122168,97619.0,97618.0,0.45048553]
[1738817590856,0.5122168,97619.0,97618.0,0.45148553]
[1738817591057,0.5122168,97619.0,97618.0,0.45048553]
[1738817591480,0.5122168,97619.0,97618.0,0.45148553]
[1738817591775,0.5122168,97619.0,97618.0,0.45048553]
[1738817591991,0.5122168,97619.0,97618.0,0.45148553]
[1738817592393,0.5122168,97619.0,97618.0,0.32598188]
[1738817593416,0.5122168,97619.0,97618.0,0.32498188]
[1738817593632,0.5122168,97619.0,97618.0,0.32598188]
[1738817593929,0.5122168,97619.0,97618.0,0.32498188]
[1738817594338,0.5122168,97619.0,97618.0,0.32598188]
[1738817594510,0.5122168,97619.0,97618.0,0.31498188]
[1738817594760,0.5122168,97619.0,97618.0,0.31598188]
[1738817594960,0.5122168,97619.0,97618.0,0.32598188]
[1738817596253,0.5122168,97619.0,97618.0,0.52908553]
[1738817596454,0.29623384,97619.0,97618.0,0.72888553]
[1738817596657,0.25411671,97619.0,97618.0,0.72888553]
[1738817597044,0.0001068,97619.0,97618.0,0.72788553]
[1738817597248,0.0001068,97635.0,97634.0,0.153635]
[1738817597447,0.0001068,97635.0,97634.0,0.4258779]
[1738817597688,0.0001068,97635.0,97634.0,0.42485397]
[1738817598621,0.0001068,97635.0,97634.0,0.43485397]
[1738817599764,0.0001068,97635.0,97634.0,0.43585397]
[1738817601419,0.0104038,97635.0,97634.0,0.43585397]
[1738817602180,0.0104038,97635.0,97634.0,0.44600182]
[1738817603231,0.0104038,97635.0,97634.0,0.46603532]
[1738817605683,0.0104038,97635.0,97634.0,0.47603532]
[1738817607521,0.0104038,97635.0,97634.0,0.47503532]
[1738817607979,0.0104038,97635.0,97634.0,0.47603532]
[1738817608669,0.0104038,97635.0,97634.0,0.47503532]
[1738817610023,0.0104038,97635.0,97634.0,0.47603532]
[1738817610450,0.0104038,97635.0,97634.0,0.47503532]
[1738817610659,0.0104038,97635.0,97634.0,0.47603532]
[1738817612013,0.0104038,97635.0,97634.0,0.79633532]
[1738817615017,0.0104038,97635.0,97634.0,0.66083167]
[1738817615217,0.0104038,97635.0,97634.0,0.67083167]
[1738817616663,0.0104038,97635.0,97634.0,0.66983167]
[1738817616862,0.0104038,97635.0,97634.0,0.67083167]
[1738817617359,0.0104038,97635.0,97634.0,0.66983167]
[1738817617586,0.0104038,97635.0,97634.0,0.67083167]
[1738817617942,0.0104038,97635.0,97634.0,0.35053167]
[1738817619945,0.0104038,97635.0,97634.0,0.34953167]
[1738817620352,0.0104038,97635.0,97634.0,0.35053167]
[1738817625457,0.0104038,97635.0,97634.0,0.34053167]
[1738817625662,0.0104038,97635.0,97634.0,0.32049817]
[1738817627176,0.0104038,97635.0,97634.0,0.31949817]
[1738817627388,0.0104038,97635.0,97634.0,0.32049817]
[1738817628348,0.0104038,97635.0,97634.0,0.33049817]
[1738817630608,0.0104038,97635.0,97634.0,0.32949817]
[1738817631191,0.0104038,97635.0,97634.0,0.33049817]
[1738817643387,0.0104038,97635.0,97634.0,0.32949817]
[1738817643788,0.0104038,97635.0,97634.0,0.33049817]
[1738817646551,0.0104038,97635.0,97634.0,0.32949817]
[1738817646925,0.0104038,97635.0,97634.0,0.33049817]
[1738817651728,0.0104038,97635.0,97634.0,0.32949817]
[1738817651902,0.0104038,97635.0,97634.0,0.33049817]
[1738817652305,0.0104038,97635.0,97634.0,0.32949817]
[1738817652492,0.0104038,97635.0,97634.0,0.33049817]
[1738817657830,0.0104038,97635.0,97634.0,0.32949817]
[1738817658282,0.0104038,97635.0,97634.0,0.33049817]
[1738817660610,0.0104038,97635.0,97634.0,0.58220182]
[1738817665571,0.0104038,97635.0,97634.0,0.90250182]
[1738817668254,0.0104038,97635.0,97634.0,0.82280182]
[1738817678942,0.0104038,97635.0,97634.0,0.77630182]
[1738817681963,5.1e-07,97635.0,97634.0,0.77630182]
[1738817682159,0.00022428,97649.0,97648.0,0.186612]
[1738817682379,0.00027079,97649.0,97648.0,0.74899363]
[1738817682708,0.00027079,97649.0,97648.0,0.74796984]
[1738817682914,0.00027079,97649.0,97648.0,0.75796984]
[1738817683980,0.00027079,97649.0,97648.0,0.75896984]
[1738817684382,0.00027079,97649.0,97648.0,0.75796984]
[1738817684581,0.00027079,97649.0,97648.0,0.75896984]
[1738817685874,0.00027079,97649.0,97648.0,0.76936552]
[1738817689851,0.00027079,97649.0,97648.0,0.78960476]